bitfinex/quotes_SOLUSD_20230112
["timestamp","ask_amount","ask_price","bid_price","bid_amount"]
[1673488626010,17.0,16.667,16.656,20.0]
[1673488626219,0.96,16.666,16.655,20.0]
[1673488626541,20.96,16.666,16.656,45.04]
[1673488626744,0.96,16.666,16.657,20.0]
[1673488628651,0.96,16.666,16.656,20.0]
[1673488628862,0.96,16.666,16.655,65.05]
[1673488633271,0.96,16.666,16.655,60.05]
[1673488639361,20.96,16.666,16.652,45.06]
[1673488639697,17.0,16.665,16.651,45.06]
[1673488639900,20.96,16.664,16.651,45.06]
[1673488640099,17.0,16.663,16.651,45.06]
[1673488640309,1.55067525,16.662,16.651,45.06]
[1673488641156,17.0,16.663,16.651,45.06]
[1673488644844,17.0,16.663,16.652,20.0]
[1673488645056,17.96,16.664,16.653,45.05]
[1673488645784,17.96,16.664,16.653,20.0]
[1673488646839,17.96,16.664,16.652,45.06]
[1673488650224,37.96,16.664,16.651,45.06]
[1673488651158,20.0,16.663,16.651,45.06]
[1673488651369,17.96,16.662,16.651,45.06]
[1673488652541,0.96,16.662,16.651,45.06]
[1673488653913,0.96,16.662,16.65,24.6]
[1673488656743,20.96,16.662,16.65,24.6]
[1673488656954,17.0,16.661,16.65,24.6]
[1673488657142,1.64953849,16.66,16.65,24.6]
[1673488657571,1.64953849,16.658,16.65,24.6]
[1673488657790,21.64953849,16.658,16.647,30.65995477]
[1673488658001,1.97116751,16.656,16.648,65.07]
[1673488659033,1.97116751,16.656,16.648,20.0]
[1673488660315,0.96,16.655,16.648,20.0]
[1673488666629,17.96,16.655,16.647,65.07]
[1673488667691,17.96,16.655,16.647,95.72995477]
[1673488667903,17.96,16.655,16.647,50.65995477]
[1673488668127,17.96,16.655,16.647,20.0]
[1673488668321,17.96,16.655,16.647,65.07]
[1673488668733,17.96,16.655,16.643,45.08]
[1673488668947,20.96,16.655,16.643,45.08]
[1673488669151,17.0,16.654,16.643,45.08]
[1673488669368,0.96,16.653,16.643,45.08]
[1673488672627,0.96,16.653,16.642,86.81222579]
[1673488673160,0.96,16.653,16.641,37.03236277]
[1673488674204,0.96,16.653,16.639,64.23496728]
[1673488674415,0.96,16.653,16.64,20.0]
[1673488674641,0.96,16.653,16.641,45.09]
[1673488675048,0.96,16.653,16.642,20.0]
[1673488675473,0.96,16.653,16.643,45.08]
[1673488675685,0.96,16.653,16.642,20.0]
[1673488675686,0.96,16.653,16.64,36.31]
[1673488675894,20.96,16.653,16.64,20.0]
[1673488676209,17.0,16.652,16.64,20.0]
[1673488676407,17.0,16.652,16.64,65.09]
[1673488676617,0.96,16.651,16.64,20.0]
[1673488676832,20.96,16.651,16.64,20.0]
[1673488677152,17.0,16.65,16.64,20.0]
[1673488677361,0.96,16.649,16.64,20.0]
[1673488677566,0.96,16.649,16.641,45.09]
[1673488677990,0.96,16.649,16.64,65.09]
[1673488682415,20.96,16.649,16.64,65.09]
[1673488682740,17.0,16.648,16.64,65.09]
[1673488683143,0.96,16.647,16.64,65.09]
[1673488684093,0.96,16.647,16.64,20.0]
[1673488684304,0.96,16.647,16.637,20.0]
[1673488684513,0.96,16.647,16.638,45.09]
[1673488684729,0.96,16.647,16.639,20.0]
[1673488685262,0.96,16.647,16.635,37.03236277]
[1673488685470,27.55398737,16.646,16.621,30.65995477]
[1673488685677,27.55398737,16.646,16.62,16.32]
[1673488685678,13.89,16.64,16.618,61.63061703]
[1673488685885,20.0,16.638,16.617,20.0]
[1673488686098,21.0344512,16.637,16.618,45.15]
[1673488686305,20.0,16.636,16.619,20.0]
[1673488686514,20.0744512,16.635,16.62,45.14]
[1673488686729,20.0744512,16.635,16.621,20.0]
[1673488686730,20.96,16.634,16.621,20.0]
[1673488686930,17.0,16.633,16.622,45.14]
[1673488687460,20.96,16.632,16.622,45.14]
[1673488687790,20.96,16.632,16.62,12.29]
[1673488687791,17.0,16.631,16.621,45.14]
[1673488688313,0.96,16.63,16.621,45.14]
[1673488690212,0.96,16.63,16.617,20.0]
[1673488690399,0.96,16.63,16.618,65.15]
[1673488691568,20.96,16.63,16.618,65.15]
[1673488691890,17.0,16.629,16.618,65.15]
[1673488692291,0.96,16.628,16.618,65.15]
[1673488693784,0.96,16.628,16.618,20.0]
[1673488693971,0.96,16.628,16.619,45.15]
[1673488694182,0.96,16.628,16.62,20.0]
[1673488694597,0.96,16.628,16.617,20.0]
[1673488694823,0.96,16.628,16.618,45.15]
[1673488695036,0.96,16.628,16.619,20.0]
[1673488695757,0.96,16.628,16.62,45.14]
[1673488695967,0.96,16.628,16.618,45.15]
[1673488696195,0.96,16.628,16.619,20.0]
[1673488696700,0.96,16.628,16.615,20.0]
[1673488696926,0.96,16.628,16.616,45.15]
[1673488697139,0.96,16.628,16.617,20.0]
[1673488697346,0.96,16.628,16.618,45.15]
[1673488697559,0.96,16.628,16.619,20.0]
[1673488698297,0.96,16.628,16.616,65.15]
[1673488698817,0.96,16.628,16.616,45.15]
[1673488699245,0.96,16.628,16.614,45.16]
[1673488699560,20.0,16.627,16.614,45.16]
[1673488699763,17.0,16.626,16.614,45.16]
[1673488700300,20.96,16.625,16.614,45.16]
[1673488700507,17.0,16.624,16.612,45.16]
[1673488700694,17.0,16.624,16.613,20.0]
[1673488700904,17.0,16.624,16.614,45.16]
[1673488701759,17.0,16.624,16.613,20.0]
[1673488701982,17.0,16.624,16.614,45.16]
[1673488704590,17.0,16.624,16.612,45.16]
[1673488704801,0.96,16.623,16.612,45.16]
[1673488705338,0.96,16.623,16.612,20.0]
[1673488705548,114.2383,16.623,16.613,45.16]
[1673488705743,17.0,16.622,16.613,45.16]
[1673488706158,37.0,16.622,16.611,45.17]
[1673488708694,17.0,16.622,16.611,45.17]
[1673488709337,20.0,16.621,16.611,45.17]
[1673488710915,17.0,16.62,16.611,45.17]
[1673488711111,37.0,16.622,16.611,45.17]
[1673488711323,20.96,16.621,16.611,45.17]
[1673488711640,17.0,16.62,16.611,45.17]
[1673488711856,0.96,16.619,16.611,45.17]
[1673488712179,0.96,16.619,16.61,12.27]
[1673488712498,0.96,16.619,16.611,20.0]
[1673488714275,0.96,16.619,16.608,20.0]
[1673488714276,0.96,16.619,16.61,20.0]
[1673488715330,0.96,16.619,16.611,45.17]
[1673488715523,0.96,16.619,16.61,20.0]
[1673488716256,0.96,16.619,16.608,20.0]
[1673488717540,0.96,16.619,16.609,45.17]
[1673488717849,0.96,16.619,16.61,20.0]
[1673488718471,0.96,16.619,16.608,20.0]
[1673488719219,0.96,16.619,16.609,45.17]
[1673488719537,0.96,16.619,16.61,20.0]
[1673488719746,0.96,16.619,16.608,20.0]
[1673488720157,0.96,16.619,16.607,20.0]
[1673488720379,20.96,16.619,16.608,45.17]
[1673488720566,17.0,16.618,16.608,45.17]
[1673488720900,0.96,16.617,16.606,45.18]
[1673488721104,0.96,16.617,16.603,39.14496728]
[1673488721105,0.96,16.617,16.605,45.18]
[1673488721636,0.96,16.617,16.604,45.19]
[1673488721950,20.96,16.617,16.604,45.19]
[1673488722161,17.0,16.616,16.604,45.19]
[1673488722355,0.96,16.615,16.604,45.19]
[1673488724169,0.96,16.615,16.602,45.19]
[1673488726163,20.96,16.615,16.601,45.19]
[1673488726471,17.0,16.614,16.601,45.19]
[1673488726892,20.96,16.613,16.601,45.19]
[1673488727101,17.0,16.612,16.6,12.29]
[1673488727296,17.0,16.612,16.601,65.19]
[1673488727504,0.96,16.611,16.601,65.19]
[1673488727715,20.96,16.611,16.601,65.19]
[1673488728029,17.0,16.61,16.601,65.19]
[1673488728449,0.96,16.609,16.601,20.0]
[1673488729086,0.96,16.609,16.598,20.0]
[1673488729296,0.96,16.609,16.599,45.2]
[1673488729500,0.96,16.609,16.6,20.0]
[1673488730146,0.96,16.609,16.597,20.0]
[1673488730147,20.96,16.609,16.597,20.0]
[1673488730365,17.0,16.608,16.598,45.2]
[1673488730569,17.0,16.608,16.599,20.0]
[1673488730773,0.96,16.607,16.599,20.0]
[1673488731186,0.96,16.607,16.596,20.0]
[1673488731399,0.96,16.607,16.597,45.2]
[1673488731617,0.96,16.607,16.598,20.0]
[1673488731827,0.96,16.607,16.599,45.2]
[1673488732042,0.96,16.607,16.6,20.0]
[1673488732759,0.96,16.607,16.596,20.0]
[1673488732975,0.96,16.607,16.597,45.2]
[1673488733184,0.96,16.607,16.598,20.0]
[1673488733397,0.96,16.607,16.599,45.2]
[1673488733618,0.96,16.607,16.595,45.21]
[1673488733837,0.96,16.607,16.594,45.21]
[1673488737385,0.96,16.607,16.594,64.35496728]
[1673488741701,0.96,16.607,16.594,45.21]
[1673488741917,0.96,16.607,16.594,20.0]
[1673488742124,0.96,16.607,16.595,45.21]
[1673488742664,233.1827,16.614,16.6,12.28]
[1673488743066,20.0,16.612,16.601,45.19]
[1673488743276,20.0,16.611,16.601,45.19]
[1673488745087,0.96,16.61,16.601,45.19]
[1673488745290,17.96,16.61,16.601,45.19]
[1673488745504,20.0,16.609,16.601,45.19]
[1673488745713,17.0,16.608,16.601,45.19]
[1673488746667,17.0,16.608,16.596,45.21]
[1673488746974,17.0,16.608,16.597,0.96]
[1673488747301,17.0,16.608,16.598,45.2]
[1673488748115,17.0,16.608,16.597,45.2]
[1673488748324,0.96,16.607,16.597,45.2]
[1673488749069,0.96,16.607,16.596,20.0]
[1673488749293,0.96,16.607,16.597,45.2]
[1673488753929,0.96,16.607,16.596,20.0]
[1673488754248,0.96,16.607,16.597,45.2]
[1673488755079,0.96,16.607,16.595,45.21]
[1673488756973,0.96,16.607,16.596,20.0]
[1673488757167,0.96,16.607,16.597,45.2]
[1673488759681,20.0,16.609,16.597,45.2]
[1673488760106,20.0,16.611,16.597,45.2]
[1673488760852,17.96,16.61,16.597,45.2]
[1673488761072,20.0,16.609,16.597,45.2]
[1673488761392,17.96,16.608,16.597,45.2]
[1673488761578,17.96,16.608,16.595,45.21]
[1673488761804,17.96,16.608,16.596,0.96]
[1673488762031,17.96,16.608,16.597,45.2]
[1673488762248,17.96,16.608,16.597,44.7]
[1673488765085,17.0,16.608,16.6,12.33]
[1673488765288,20.0,16.609,16.6,12.33]
[1673488765604,20.0,16.612,16.6,12.33]
[1673488765605,20.0,16.611,16.6,12.33]
[1673488765924,0.96,16.61,16.599,45.2]
[1673488766128,0.96,16.61,16.6,12.31]
[1673488766543,17.96,16.61,16.6,12.31]
[1673488766867,20.0,16.609,16.6,11.81]
[1673488767080,17.0,16.608,16.6,11.81]
[1673488767389,20.0,16.613,16.6,11.81]
[1673488767390,233.1827,16.614,16.601,45.19]
[1673488767590,233.1827,16.614,16.602,20.0]
[1673488767792,233.1827,16.614,16.603,45.19]
[1673488768216,232.6827,16.614,16.603,45.19]
[1673488768953,37.96,16.613,16.603,45.19]
[1673488769369,37.96,16.613,16.602,45.19]
[1673488770001,17.0,16.613,16.602,45.19]
[1673488770210,17.0,16.613,16.603,0.96]
[1673488770431,232.6827,16.614,16.604,45.19]
[1673488770640,232.6827,16.614,16.602,45.19]
[1673488770856,20.0,16.613,16.602,45.19]
[1673488771264,20.0,16.613,16.601,45.19]
[1673488771698,17.0,16.612,16.601,45.19]
[1673488771908,232.6827,16.614,16.602,20.0]
[1673488772111,17.0,16.613,16.603,46.15]
[1673488773268,17.0,16.613,16.603,0.96]
[1673488773483,17.0,16.613,16.604,45.19]
[1673488773800,37.0,16.613,16.604,43.15]
[1673488775055,17.0,16.613,16.604,43.15]
[1673488778119,119.3153,16.614,16.604,43.15]
[1673488778427,119.3153,16.614,16.605,0.96]
[1673488778640,119.3153,16.614,16.606,45.18]
[1673488780430,119.3153,16.614,16.605,0.96]
[1673488780738,20.0,16.613,16.603,45.19]
[1673488780941,17.0,16.612,16.601,45.19]
[1673488782320,37.0,16.613,16.602,20.96]
[1673488782513,37.0,16.613,16.603,45.19]
[1673488782843,37.0,16.613,16.602,20.96]
[1673488783488,17.0,16.613,16.602,20.96]
[1673488784106,17.0,16.613,16.602,0.96]
[1673488784320,17.0,16.613,16.603,45.19]
[1673488784511,17.0,16.613,16.602,46.15]
[1673488785165,17.0,16.613,16.602,45.19]
[1673488785358,0.96,16.612,16.601,64.33496728]
[1673488785569,0.96,16.612,16.601,19.14496728]
[1673488785783,0.96,16.612,16.6,57.47]
[1673488785999,0.96,16.612,16.601,20.0]
[1673488786190,20.96,16.612,16.601,20.0]
[1673488786401,17.96,16.611,16.601,20.0]
[1673488786726,20.0,16.61,16.601,65.19]
[1673488786945,17.96,16.609,16.601,20.0]
[1673488789027,17.96,16.609,16.596,20.0]
[1673488789243,17.96,16.609,16.597,45.2]
[1673488789446,17.96,16.609,16.598,20.0]
[1673488789658,17.96,16.609,16.596,20.0]
[1673488789867,17.96,16.609,16.597,45.2]
[1673488790099,17.96,16.609,16.598,20.0]
[1673488790834,17.96,16.609,16.596,20.0]
[1673488791025,17.96,16.609,16.597,45.2]
[1673488791239,17.96,16.609,16.598,20.0]
[1673488792307,17.96,16.609,16.596,20.0]
[1673488792493,17.96,16.609,16.597,45.2]
[1673488792700,17.96,16.609,16.595,45.21]
[1673488792923,17.96,16.609,16.591,20.0]
[1673488792924,20.0,16.608,16.593,45.22]
[1673488793139,17.0,16.607,16.593,19.14496728]
[1673488793349,0.96,16.606,16.594,45.21]
[1673488793766,20.96,16.606,16.594,45.21]
[1673488793977,17.0,16.605,16.594,45.21]
[1673488794186,20.0,16.604,16.594,45.21]
[1673488794386,17.0,16.603,16.594,45.21]
[1673488795129,17.0,16.603,16.593,19.14496728]
[1673488795332,17.0,16.603,16.594,45.21]
[1673488795545,17.0,16.603,16.593,19.14496728]
[1673488797128,17.0,16.603,16.591,45.22]
[1673488797458,17.0,16.603,16.592,0.96]
[1673488797651,17.0,16.603,16.593,45.22]
[1673488798059,17.0,16.603,16.593,64.36496728]
[1673488798271,17.0,16.603,16.593,45.22]
[1673488798477,17.0,16.603,16.594,19.14496728]
[1673488799542,0.96,16.602,16.591,45.22]
[1673488799758,20.96,16.602,16.591,45.22]
[1673488799974,17.0,16.601,16.592,19.14496728]
[1673488800696,1.92,16.6,16.591,45.22]
[1673488801124,1.92,16.6,16.59,12.24]
[1673488801322,1.92,16.6,16.591,39.14496728]
[1673488802070,1.92,16.6,16.591,20.0]
[1673488802282,1.92,16.6,16.588,20.0]
[1673488802699,1.92,16.6,16.589,45.23]
[1673488802912,1.92,16.6,16.587,20.0]
[1673488802913,1.92,16.6,16.59,20.0]
[1673488803543,1.92,16.6,16.589,20.0]
[1673488804160,1.92,16.6,16.59,45.22]
[1673488804386,20.0,16.604,16.591,20.0]
[1673488804596,161.1597,16.605,16.592,20.0]
[1673488804801,20.0,16.604,16.593,45.22]
[1673488805432,20.0,16.604,16.592,45.22]
[1673488805860,65.19,16.604,16.591,20.0]
[1673488806066,17.96,16.603,16.589,20.0]
[1673488806476,20.0,16.602,16.589,20.0]
[1673488806684,17.0,16.601,16.589,20.0]
[1673488806891,0.96,16.6,16.589,20.0]
[1673488808068,0.96,16.6,16.59,57.49]
[1673488808260,0.96,16.6,16.591,20.0]
[1673488808471,0.96,16.6,16.592,45.22]
[1673488808891,0.96,16.6,16.591,20.0]
[1673488809116,0.96,16.6,16.589,20.0]
[1673488809329,0.96,16.6,16.588,20.0]
[1673488809966,0.96,16.6,16.587,20.0]
[1673488810153,0.96,16.6,16.587,65.23]
[1673488810585,0.96,16.6,16.588,20.0]
[1673488811005,0.96,16.6,16.589,45.23]
[1673488811336,0.96,16.6,16.59,20.0]
[1673488811542,0.96,16.6,16.591,45.22]
[1673488811743,0.96,16.6,16.59,20.0]
[1673488811941,0.96,16.6,16.587,20.0]
[1673488812157,0.96,16.6,16.588,45.23]
[1673488812368,0.96,16.6,16.591,20.0]
[1673488812574,0.96,16.6,16.592,45.22]
[1673488813116,0.96,16.6,16.591,45.22]
[1673488814907,17.0,16.601,16.591,45.22]
[1673488815311,17.0,16.601,16.592,20.0]
[1673488815534,17.0,16.601,16.593,45.22]
[1673488816056,17.0,16.601,16.591,45.22]
[1673488816801,0.96,16.6,16.591,45.22]
[1673488817320,0.96,16.6,16.59,45.22]
[1673488817535,0.96,16.6,16.591,20.0]
[1673488817847,0.96,16.6,16.592,45.22]
[1673488818368,0.96,16.6,16.591,20.0]
[1673488818687,0.96,16.6,16.591,19.0]
[1673488818894,0.96,16.6,16.589,45.23]
[1673488820163,0.96,16.6,16.59,20.0]
[1673488820352,0.96,16.6,16.591,45.22]
[1673488821851,0.96,16.6,16.59,20.0]
[1673488822686,45.19,16.604,16.59,20.0]
[1673488822892,115.9797,16.605,16.591,45.22]
[1673488823095,20.0,16.604,16.591,45.22]
[1673488824247,17.96,16.603,16.591,45.22]
[1673488825939,17.96,16.603,16.59,20.0]
[1673488826151,20.0,16.601,16.589,45.23]
[1673488826365,37.96,16.6,16.589,45.23]
[1673488827301,17.96,16.6,16.589,45.23]
[1673488827518,20.0,16.604,16.589,45.23]
[1673488827735,20.0,16.604,16.591,20.0]
[1673488828054,20.0,16.604,16.592,45.22]
[1673488828770,18.92,16.603,16.592,45.22]
[1673488829604,20.0,16.602,16.591,45.22]
[1673488829816,18.92,16.601,16.591,45.22]
[1673488830893,146.99,16.6,16.571,30.65995477]
[1673488831105,20.0,16.599,16.571,20.0]
[1673488831415,67.1944512,16.598,16.571,20.0]
[1673488831615,3.0744512,16.596,16.573,20.0]
[1673488831825,3.0744512,16.594,16.575,20.0]
[1673488832026,3.0744512,16.594,16.58,12.27]
[1673488832239,3.0744512,16.592,16.581,45.25]
[1673488832572,3.0744512,16.593,16.581,45.25]
[1673488833302,183.9744512,16.589,16.565,31.39759993]
[1673488833497,3.0744512,16.579,16.55,92.90759993]
[1673488833703,3.0744512,16.577,16.555,31.39759993]
[1673488833917,3.0744512,16.575,16.556,34.31]
[1673488834229,0.96,16.576,16.556,34.31]
[1673488834230,3.0744512,16.576,16.557,20.0]
[1673488834444,0.96,16.575,16.56,12.27]
[1673488834656,4.0344512,16.574,16.561,31.57]
[1673488834870,0.96,16.573,16.561,31.57]
[1673488835082,3.0744512,16.572,16.561,31.57]
[1673488835277,0.96,16.571,16.561,31.57]
[1673488835492,1.92,16.571,16.561,31.57]
[1673488837000,1.92,16.571,16.555,32.53]
[1673488837205,1.92,16.571,16.556,40.0]
[1673488837403,1.92,16.571,16.557,31.73]
[1673488837616,1.92,16.571,16.558,20.0]
[1673488838238,1.92,16.571,16.557,20.0]
[1673488838655,103.37411917,16.57,16.55,91.97986315]
[1673488838868,12.33,16.56,16.542,20.0]
[1673488839088,23.0744512,16.559,16.542,20.0]
[1673488839301,23.0744512,16.559,16.535,20.0]
[1673488839302,17.96,16.558,16.535,20.0]
[1673488839515,49.3444512,16.557,16.535,20.0]
[1673488839724,20.0,16.556,16.535,20.0]
[1673488839921,21.0344512,16.555,16.535,20.0]
[1673488840661,21.0344512,16.555,16.536,34.621918]
[1673488840662,12.33,16.55,16.536,34.621918]
[1673488840867,17.0,16.549,16.531,20.0]
[1673488841078,0.96,16.548,16.531,20.0]
[1673488841283,0.96,16.547,16.531,20.0]
[1673488841715,0.96,16.546,16.531,20.0]
[1673488841929,0.96,16.545,16.531,20.0]
[1673488842341,1.92,16.544,16.53,32.43]
[1673488842982,1.92,16.544,16.531,20.0]
[1673488843178,1.92,16.544,16.528,20.0]
[1673488843385,1.92,16.544,16.526,20.0]
[1673488844988,16.69,16.55,16.531,20.0]
[1673488845176,1.97265758,16.555,16.532,21.92]
[1673488845592,1.97265758,16.555,16.533,20.0]
[1673488845834,1.97265758,16.555,16.534,1.92]
[1673488846033,1.97265758,16.555,16.535,20.0]
[1673488846228,1.97265758,16.555,16.536,23.999]
[1673488846434,1.97265758,16.555,16.54,16.62]
[1673488846655,1.97265758,16.555,16.541,24.382]
[1673488847081,1.97265758,16.555,16.541,23.422]
[1673488848140,0.96,16.554,16.541,23.422]
[1673488848356,1.97265758,16.553,16.541,23.422]
[1673488848773,0.96,16.552,16.542,20.0]
[1673488848992,1.92,16.552,16.543,2.13]
[1673488849631,1.97265758,16.551,16.543,2.13]
[1673488850461,1.97265758,16.555,16.543,2.13]
[1673488850669,118.9105,16.56,16.544,21.06496728]
[1673488850998,108.4821,16.565,16.545,67.62396728]
[1673488851201,108.4821,16.565,16.55,16.56]
[1673488851394,20.0,16.564,16.551,33.54]
[1673488851603,20.0,16.564,16.551,20.0]
[1673488851604,45.3,16.563,16.551,20.0]
[1673488852150,20.0,16.562,16.542,20.0]
[1673488852365,20.0,16.56,16.543,13.06]
[1673488852555,20.0,16.558,16.543,13.06]
[1673488852766,0.96,16.557,16.544,20.0]
[1673488853097,17.96,16.557,16.545,14.14]
[1673488853714,17.96,16.557,16.546,20.0]
[1673488854130,17.96,16.557,16.544,20.0]
[1673488854458,17.96,16.557,16.545,15.33]
[1673488854673,17.96,16.557,16.546,20.0]
[1673488854865,17.96,16.557,16.544,20.0]
[1673488855074,17.96,16.557,16.547,19.14496728]
[1673488855075,0.96,16.557,16.547,19.14496728]
[1673488855284,45.29,16.567,16.548,0.96]
[1673488855501,45.29,16.567,16.551,20.0]
[1673488855710,45.29,16.567,16.551,38.12]
[1673488856459,45.29,16.567,16.551,18.12]
[1673488856862,20.0,16.567,16.551,18.12]
[1673488857284,20.0,16.567,16.551,37.26496728]
[1673488857501,65.28,16.568,16.551,37.26496728]
[1673488857916,65.28,16.568,16.552,20.0]
[1673488858124,45.28,16.568,16.552,20.0]
[1673488858338,45.29,16.564,16.548,0.96]
[1673488858550,18.92,16.563,16.549,29.25]
[1673488858766,18.92,16.563,16.551,20.0]
[1673488858961,18.92,16.563,16.551,50.18]
[1673488859171,18.92,16.563,16.55,17.58]
[1673488859172,1.92,16.563,16.552,41.81142388]
[1673488859383,20.0,16.561,16.552,41.81142388]
[1673488859615,20.0,16.561,16.546,20.0]
[1673488859616,20.0,16.559,16.546,20.0]
[1673488859825,17.96,16.558,16.546,47.42]
[1673488860349,17.96,16.558,16.546,20.0]
[1673488860666,17.0,16.559,16.55,16.6]
[1673488861066,17.0,16.559,16.551,20.0]
[1673488862445,20.0,16.564,16.551,20.0]
[1673488863511,20.0,16.566,16.551,20.0]
[1673488863715,20.0,16.566,16.552,71.71496728]
[1673488863914,20.0,16.566,16.552,52.57]
[1673488864129,20.0,16.566,16.552,71.71496728]
[1673488864337,20.0,16.566,16.553,36.14496728]
[1673488864544,20.0,16.566,16.554,30.1]
[1673488864756,0.96,16.565,16.553,30.1]
[1673488864965,0.96,16.565,16.551,20.0]
[1673488864966,18.92,16.565,16.552,29.91]
[1673488865699,18.92,16.565,16.553,20.0]
[1673488865918,17.0,16.564,16.553,20.0]
[1673488866133,1.92,16.565,16.553,20.0]
[1673488866330,1.92,16.565,16.554,30.14]
[1673488867072,1.92,16.565,16.553,29.52]
[1673488867500,0.96,16.565,16.553,29.52]
[1673488867711,1.92,16.565,16.553,29.52]
[1673488868034,0.96,16.565,16.553,29.52]
[1673488869590,17.0,16.566,16.553,29.52]
[1673488869799,17.0,16.567,16.554,21.92]
[1673488870017,17.0,16.567,16.555,23.9]
[1673488870223,17.0,16.568,16.556,20.96]
[1673488870660,237.6543,16.569,16.558,20.0]
[1673488870984,118.9105,16.569,16.559,24.57]
[1673488871172,118.9105,16.569,16.56,20.0]
[1673488871589,118.9105,16.569,16.559,20.0]
[1673488871796,162.5311,16.573,16.559,20.0]
[1673488872020,117.2611,16.573,16.56,0.96]
[1673488872232,117.2611,16.573,16.56,31.36]
[1673488872655,20.0,16.572,16.561,20.0]
[1673488873170,20.0,16.572,16.56,20.96]
[1673488873909,17.0,16.571,16.56,20.96]
[1673488874116,17.0,16.571,16.56,45.8]
[1673488874337,117.2611,16.573,16.561,33.06]
[1673488874338,17.0,16.572,16.561,33.06]
[1673488874545,17.96,16.572,16.561,33.06]
[1673488874766,17.0,16.572,16.561,33.06]
[1673488875294,65.26,16.577,16.562,41.06496728]
[1673488875612,20.0,16.577,16.564,20.0]
[1673488875803,20.0,16.577,16.565,0.96]
[1673488877084,65.25,16.58,16.565,0.96]
[1673488877287,20.0,16.579,16.566,0.96]
[1673488877496,20.0,16.579,16.567,0.96]
[1673488878536,17.0,16.578,16.567,0.96]
[1673488879901,45.25,16.58,16.567,0.96]
[1673488880115,45.24,16.583,16.571,20.0]
[1673488880319,110.6924,16.585,16.571,65.28]